bitfinex-derivatives/quotes_SOLF0:USTF0_20241217
["timestamp","ask_amount","ask_price","bid_price","bid_amount"]
[1734440291835,2.2023,227.07,226.93,10.23296569]
[1734440291836,13.15296569,227.07,226.93,10.23296569]
[1734440292028,13.15296569,227.07,226.98,5.16232946]
[1734440292330,15.35526569,227.07,227.0,2.2029]
[1734440292535,13.15296569,227.07,227.0,2.2029]
[1734440292931,13.15296569,227.07,226.98,5.16232946]
[1734440293132,2.2024,227.05,226.99,2.203]
[1734440293531,13.15296569,227.07,226.93,10.23296569]
[1734440293736,2.2026,227.03,226.97,2.2032]
[1734440294131,2.84,227.11,226.96,15.61896038]
[1734440294436,2.84,227.11,227.03,2.2026]
[1734440294630,2.84,227.11,226.96,15.61896038]
[1734440295136,2.2022,227.08,226.96,15.61896038]
[1734440296332,2.2023,227.07,227.01,2.2027]
[1734440296528,10.23296569,227.09,226.96,5.38599469]
[1734440296939,10.23296569,227.09,226.99,2.203]
[1734440297536,2.84,227.08,226.96,5.38599469]
[1734440298134,2.2023,227.07,227.01,2.2028]
[1734440298747,2.2023,227.06,226.99,2.2029]
[1734440298932,4.3566,227.08,226.96,5.38599469]
[1734440299139,14.58956569,227.08,226.96,5.38599469]
[1734440299837,6.5897,227.67,227.07,10.23296569]
[1734440300040,21.9396,227.94,227.07,10.23296569]
[1734440300041,4.6047,227.56,227.39,10.23296569]
[1734440300236,4.6047,227.56,227.48,10.23296569]
[1734440300237,3.036,227.56,227.48,10.23296569]
[1734440300538,10.23296569,227.59,227.4,5.16921067]
[1734440300733,10.23296569,227.56,227.4,5.16921067]
[1734440300937,8.33111438,227.62,227.38,10.23296569]
[1734440300938,10.23296569,227.53,227.38,10.23296569]
[1734440301133,3.22,227.52,227.37,2.1993]
[1734440301440,4.7887,227.52,227.37,2.1993]
[1734440301833,2.198,227.51,227.38,2.1992]
[1734440302341,2.198,227.51,227.38,7.54919697]
[1734440302540,2.198,227.51,227.38,6.34398697]
[1734440303241,4.7887,227.52,227.38,6.34398697]
[1734440303242,2.1982,227.49,227.38,5.34999697]
[1734440303539,2.1982,227.49,227.36,2.1994]
[1734440303540,4.7887,227.52,227.34,3.22]
[1734440303735,2.8897,227.48,227.34,3.22]
[1734440303937,2.1985,227.46,227.34,3.22]
[1734440304132,2.8897,227.48,227.34,5.19231046]
[1734440304333,3.22,227.45,227.25,16.34229717]
[1734440304536,2.1987,227.44,227.26,4.52903669]
[1734440304739,2.1987,227.44,227.25,19.56229717]
[1734440304740,3.22,227.45,227.3,5.28418172]
[1734440305137,2.1987,227.44,227.3,5.28418172]
[1734440305333,3.22,227.45,227.3,5.28418172]
[1734440305740,5.4186,227.45,227.32,2.1997]
[1734440306440,5.4186,227.45,227.33,2.1997]
[1734440306938,16.34229717,227.43,227.3,5.28418172]
[1734440307139,16.34229717,227.43,227.24,16.34229717]
[1734440307636,16.34229717,227.43,227.29,5.2340547]
[1734440308641,2.1992,227.39,227.29,5.2340547]
[1734440308841,3.22,227.38,227.29,5.2340547]
[1734440309232,3.22,227.38,227.18,4.52856856]
[1734440309443,1.5013,227.37,227.19,16.34229717]
[1734440310441,2.1997,227.34,227.25,2.2005]
[1734440310638,3.22,227.42,227.27,16.34229717]
[1734440310943,1.5013,227.45,227.36,2.1994]
[1734440311143,4.7213,227.45,227.32,16.34229717]
[1734440311545,4.7213,227.45,227.31,2.1998]
[1734440311546,2.1989,227.42,227.31,2.1998]
[1734440312045,2.199,227.41,227.31,2.1998]
[1734440312743,2.199,227.41,227.32,2.1998]
[1734440313645,2.1991,227.4,227.31,2.1999]
[1734440316848,2.1992,227.39,227.31,2.1999]
[1734440317049,3.22,227.38,227.31,2.1999]
[1734440317943,5.4193,227.38,227.29,2.2]
[1734440318146,5.4193,227.38,227.25,21.61018898]
[1734440319150,5.4193,227.38,227.3,2.2]
[1734440319345,2.1994,227.37,227.3,2.2]
[1734440319648,3.22,227.38,227.25,21.61018898]
[1734440320242,2.1995,227.36,227.29,2.2001]
[1734440320645,1.5033,227.35,227.29,2.2001]
[1734440321550,1.5033,227.35,227.25,5.26789181]
[1734440321949,1.4291,227.34,227.25,5.26789181]
[1734440322252,1.4291,227.34,227.21,0.68083]
[1734440322446,17.90569717,227.33,227.21,0.68083]
[1734440322648,2.2002,227.28,227.21,2.88173]
[1734440323050,3.22,227.29,227.21,2.88173]
[1734440324052,3.22,227.29,227.21,0.68083]
[1734440324253,2.2005,227.26,227.21,0.68083]
[1734440324960,19.56229717,227.29,227.21,0.68083]
[1734440325457,2.2008,227.22,227.15,2.2014]
[1734440325652,19.56229717,227.29,227.11,16.34229717]
[1734440325653,3.22,227.21,227.11,16.34229717]
[1734440325959,16.34229717,227.29,227.07,16.34229717]
[1734440325960,3.22,227.22,227.07,16.34229717]
[1734440326153,3.22,227.21,227.08,4.53879119]
[1734440326353,3.22,227.2,227.07,16.34229717]
[1734440326554,2.2014,227.17,227.1,7.36528072]
[1734440326951,2.2014,227.17,227.1,2.2019]
[1734440327151,1.5153,227.19,227.06,1.5196]
[1734440327351,1.5153,227.19,227.08,21.51677739]
[1734440327860,1.5153,227.19,227.13,2.2016]
[1734440328261,2.2013,227.17,227.1,2.2019]
[1734440328461,1.5153,227.19,227.08,5.17448022]
[1734440328754,5.1969,227.19,227.12,2.2017]
[1734440328955,2.9958,227.19,227.08,5.17448022]
[1734440330161,5.197,227.19,227.13,2.2016]
[1734440330363,6.0558,227.19,227.08,5.17448022]
[1734440330558,2.2014,227.16,227.08,5.17448022]
[1734440330867,2.2014,227.16,227.01,16.34229717]
[1734440332161,2.2015,227.15,227.09,2.202]
[1734440334162,6.0558,227.19,226.94,3.05414009]
[1734440334163,2.2018,227.12,227.05,2.2024]
[1734440334363,3.06,227.11,226.97,16.34229717]
[1734440334859,3.06,227.11,227.06,2.2023]
[1734440335057,5.262,227.11,226.97,16.34229717]
[1734440335259,3.06,227.11,226.97,16.34229717]
[1734440335464,3.06,227.11,227.02,2.2026]
[1734440335665,3.06,227.11,226.98,5.39666559]
[1734440335863,16.34229717,227.17,227.01,16.34229717]
[1734440336061,3.06,227.16,227.1,2.2019]
[1734440337364,3.06,227.16,227.09,2.202]
[1734440337966,10.24386566,227.15,227.09,2.202]
[1734440338264,10.24386566,227.15,227.01,13.30386566]
[1734440338460,10.24386566,227.15,227.1,2.2019]
[1734440340367,10.24386566,227.26,227.1,2.2019]
[1734440340368,13.2,227.45,227.13,10.24386566]
[1734440340662,13.2,227.45,227.16,10.24386566]
[1734440340663,11.70826566,227.3,227.16,10.24386566]
[1734440340864,13.23606566,227.3,227.16,10.24386566]
[1734440341169,2.2002,227.28,227.13,10.24386566]
[1734440341463,10.24386566,227.24,227.13,3.06]
[1734440341668,10.24386566,227.24,227.17,2.2013]
[1734440342570,2.2007,227.23,227.16,2.2014]
[1734440342868,10.24386566,227.24,227.11,4.5925]
[1734440343069,12.44446566,227.24,227.17,2.2013]
[1734440343769,10.24386566,227.24,227.11,4.5925]
[1734440343972,2.2007,227.23,227.17,2.2013]
[1734440344572,10.24386566,227.24,227.11,4.5925]
[1734440344772,10.24386566,227.27,227.11,4.5925]
[1734440344967,8.26909094,227.3,227.16,10.24386566]
[1734440344968,3.06,227.29,227.16,10.24386566]
[1734440345271,1.4885,227.35,227.28,2.2002]
[1734440346074,1.4885,227.35,227.3,2.2]
[1734440346374,11.76016566,227.36,227.3,2.2]
[1734440347573,1.5163,227.36,227.3,2.2]
[1734440348166,1.4366,227.41,227.28,3.06]
[1734440348372,1.4366,227.41,227.36,2.1994]
[1734440348767,3.06,227.44,227.36,2.1994]
[1734440348966,8.27398668,227.44,227.36,2.1994]
[1734440349165,16.35648895,227.41,227.28,2.2002]
[1734440349365,16.35648895,227.41,227.22,17.89218895]
[1734440349569,16.35648895,227.41,227.23,3.06]
[1734440349774,16.35648895,227.41,227.24,3.06]
[1734440350367,16.35648895,227.41,227.22,4.5957]
[1734440350775,16.35648895,227.37,227.22,4.5957]
[1734440350975,2.1998,227.32,227.25,2.2005]
[1734440351570,2.1998,227.32,227.22,1.5357]
[1734440351571,2.1999,227.31,227.22,1.5357]
[1734440352371,2.2,227.3,227.23,2.2006]
[1734440352675,16.35648895,227.33,227.18,3.06]
[1734440352871,16.35648895,227.33,227.24,2.2006]
[1734440353074,16.35648895,227.29,227.14,5.26877943]
[1734440353270,3.06,227.28,227.14,5.26877943]
[1734440353475,4.4755,227.28,227.14,5.26877943]
[1734440353775,2.2006,227.24,227.17,2.2013]
[1734440353974,4.4755,227.28,227.14,5.26877943]
[1734440354179,4.4755,227.28,227.11,4.5945]
[1734440354373,2.2008,227.22,227.11,4.5945]
[1734440354569,16.35648895,227.25,227.11,4.5945]
[1734440354978,2.2007,227.24,227.18,2.2012]
[1734440355179,16.35648895,227.25,227.18,2.2012]
[1734440355875,16.35648895,227.25,227.11,4.5945]
[1734440356071,16.35648895,227.25,227.12,5.19334106]
[1734440357376,16.35648895,227.25,227.05,3.7347]
[1734440357580,16.35648895,227.21,227.05,3.7347]
[1734440357780,3.06,227.2,227.05,3.7347]
[1734440357977,2.2013,227.17,227.1,2.2019]
[1734440358479,3.06,227.2,227.1,7.46976387]
[1734440358672,2.2014,227.16,227.1,7.46976387]
[1734440358874,3.06,227.2,227.05,0.6747]
[1734440359181,2.2015,227.15,227.08,2.2021]
[1734440359874,2.2015,227.15,227.01,19.41648895]
[1734440359875,2.2016,227.14,227.06,2.2023]
[1734440360381,3.06,227.2,227.06,2.2023]
[1734440360382,2.2017,227.13,227.06,2.2023]
[1734440360878,1.4496,227.16,227.05,5.23413858]
[1734440361182,2.2016,227.14,227.07,2.2022]
[1734440362278,2.2016,227.14,227.08,2.2021]
[1734440362785,1.4496,227.16,227.1,2.2019]
[1734440362979,1.4496,227.16,227.05,18.8825336]
[1734440363187,1.4496,227.16,227.05,5.23413858]
[1734440363377,3.651,227.16,227.05,5.23413858]
[1734440363679,3.651,227.16,227.09,2.202]
[1734440364081,3.651,227.16,227.06,4.57945943]
[1734440364284,3.651,227.16,227.1,2.2019]
[1734440364582,3.015,227.25,227.11,4.57750716]
[1734440364777,3.015,227.25,227.12,4.57750716]
[1734440364977,5.2155,227.25,227.13,4.57750716]
[1734440365185,5.2155,227.25,227.1,1.4367]
[1734440365378,5.2155,227.25,227.11,11.90112278]
[1734440365577,5.2155,227.25,227.12,11.90112278]
[1734440365784,5.2155,227.25,227.13,11.90134252]
[1734440365977,3.015,227.25,227.14,4.57735491]
[1734440366182,3.015,227.25,227.15,4.57735491]
[1734440366388,2.96,227.28,227.24,2.2006]
[1734440366581,2.2001,227.3,227.24,2.2006]
[1734440366784,5.1601,227.3,227.24,2.2006]
[1734440366982,2.2001,227.3,227.24,2.2006]
[1734440367178,2.2001,227.3,227.16,7.32399572]
[1734440367383,16.35648895,227.29,227.12,2.96]
[1734440367585,16.35648895,227.29,227.13,11.9106363]
[1734440367886,16.35648895,227.29,227.14,11.9106363]
[1734440368081,16.35648895,227.29,227.15,4.58101396]
[1734440368281,2.2005,227.26,227.19,2.201]
[1734440368483,5.1605,227.26,227.12,2.96]
[1734440368678,5.1605,227.26,227.13,11.91198279]
[1734440368879,2.96,227.26,227.14,11.91198279]
[1734440369078,19.31648895,227.29,227.23,2.2007]
[1734440369282,2.96,227.29,227.16,7.33045095]
[1734440369478,25.1196241,227.32,227.3,2.2]
[1734440369479,0.4351,227.32,227.3,2.2]
[1734440369678,0.4351,227.32,227.23,2.96]
[1734440369987,0.4351,227.32,227.24,14.8634417]
[1734440370287,0.4351,227.32,227.25,4.5760793]
[1734440370483,0.4351,227.32,227.24,2.96]
[1734440370678,0.4351,227.32,227.25,4.5750353]
[1734440370888,0.4351,227.32,227.29,2.2001]
[1734440371088,0.4351,227.32,227.24,2.96]
[1734440371290,0.4351,227.32,227.25,4.57423122]
[1734440371489,0.4351,227.32,227.26,4.57423122]
[1734440371687,0.4351,227.32,227.27,4.57423122]
[1734440371883,0.4351,227.32,227.24,2.96]
[1734440372088,0.4351,227.32,227.25,11.88832004]
[1734440372284,0.4351,227.32,227.31,2.1999]
[1734440372684,0.4351,227.32,227.25,2.96]
[1734440372885,0.4351,227.32,227.27,2.2003]
[1734440373087,0.4351,227.32,227.23,2.96]
[1734440373490,0.4351,227.32,227.06,187.0]
[1734440373685,0.4351,227.32,227.18,2.96]
[1734440373886,2.96,227.31,227.18,2.96]
[1734440374391,4.4159,227.31,227.18,2.96]
[1734440374583,4.4159,227.31,227.17,2.96]
[1734440375185,2.2,227.3,227.23,2.2007]
[1734440375387,4.4159,227.31,227.07,2.111]
[1734440375588,4.4159,227.31,227.15,2.96]
[1734440375589,16.35648895,227.3,227.15,2.96]
[1734440375785,17.83128895,227.3,227.22,2.2008]
[1734440376492,17.83128895,227.3,227.15,2.96]
[1734440376690,17.83128895,227.3,227.17,5.24088325]
[1734440377091,20.03138895,227.3,227.17,5.24088325]
[1734440377289,17.83128895,227.3,227.17,5.24088325]
[1734440379594,17.83128895,227.3,227.08,19.43968711]
[1734440379892,17.83128895,227.3,227.09,11.91452379]
[1734440380195,17.83128895,227.3,227.18,2.2012]
[1734440380592,2.2008,227.22,227.15,2.2015]
[1734440380899,2.96,227.24,227.1,7.33645167]
[1734440381090,2.96,227.24,227.18,2.2012]
[1734440384297,2.96,227.24,227.16,2.2013]
[1734440384605,1.513,227.23,227.16,2.2013]
[1734440385405,2.2008,227.22,227.16,2.2013]
[1734440386404,1.513,227.23,227.14,5.36040564]
[1734440386797,1.513,227.23,227.18,2.2011]
[1734440387402,1.513,227.23,227.16,2.2013]
[1734440387599,1.513,227.23,227.14,5.36040564]
[1734440387797,1.513,227.23,227.15,14.82338323]
[1734440388000,5.1603,227.28,227.22,2.2007]
[1734440388198,2.2003,227.28,227.22,2.2007]
[1734440388395,14.62453338,227.29,227.16,10.29965187]
[1734440388597,2.96,227.29,227.24,2.2005]
[1734440388799,2.96,227.29,227.18,10.23463338]
[1734440389002,2.96,227.29,227.19,4.58623554]
[1734440389195,2.96,227.29,227.18,13.19463338]
[1734440389395,2.96,227.29,227.19,4.58628253]
[1734440389597,2.96,227.29,227.18,13.19463338]
[1734440389896,2.96,227.29,227.25,2.2004]
[1734440390095,1.4748,227.3,227.25,2.2004]
[1734440390904,3.6748,227.3,227.24,2.2006]
[1734440391305,1.4748,227.3,227.18,13.19463338]
[1734440391503,1.4748,227.3,227.24,2.2005]
[1734440392002,1.4748,227.3,227.18,13.19463338]
[1734440392303,2.2002,227.29,227.18,13.19463338]
[1734440392502,10.23463338,227.29,227.15,10.23463338]
[1734440392703,10.23463338,227.29,227.16,4.59020218]
[1734440392906,10.23463338,227.29,227.17,4.59020218]
[1734440393103,3.6293,227.36,227.26,2.2004]
[1734440393298,2.8596,227.36,227.24,2.92]
[1734440393909,13.09423338,227.36,227.24,2.92]
[1734440394501,2.1996,227.34,227.28,2.2001]
[1734440395010,2.1998,227.33,227.27,2.2003]
[1734440396011,2.1996,227.34,227.28,2.2002]
[1734440396206,2.92,227.35,227.22,10.23463338]
[1734440396510,2.92,227.35,227.23,4.59017371]
[1734440396704,5.1196,227.35,227.24,4.59017371]
[1734440396907,5.1196,227.35,227.22,10.23463338]
[1734440397109,2.92,227.35,227.23,4.59003891]
[1734440397304,2.92,227.35,227.22,10.23463338]
[1734440397305,2.1997,227.34,227.28,2.2002]
[1734440398006,2.1997,227.34,227.22,10.23463338]
[1734440398206,2.92,227.35,227.25,10.23463338]
[1734440398414,2.92,227.35,227.22,10.23463338]
[1734440398609,2.92,227.35,227.23,4.58908291]
[1734440398909,2.92,227.35,227.27,2.2002]
[1734440399812,5.1196,227.35,227.22,10.23463338]
[1734440400015,5.1196,227.35,227.23,4.58997023]
[1734440400214,2.8596,227.36,227.25,10.23463338]
[1734440400409,2.8596,227.36,227.19,1.4164]
[1734440400410,2.8596,227.36,227.28,10.23463338]
[1734440400713,10.23463338,227.43,227.28,10.23463338]
[1734440400714,13.19,227.61,227.28,10.23463338]
[1734440400909,5.2960761,227.46,227.31,10.23463338]
[1734440401215,5.2960761,227.46,227.34,10.23463338]
[1734440401715,2.1986,227.45,227.39,2.1991]
[1734440402309,4.6134,227.47,227.37,10.23463338]
[1734440402514,3.0439,227.47,227.37,10.23463338]
[1734440402916,5.2423,227.47,227.37,10.23463338]
[1734440403111,3.0439,227.47,227.33,1.534]
[1734440403415,3.0439,227.47,227.36,2.1994]
[1734440403609,5.2423,227.47,227.35,10.23463338]
[1734440403807,5.2423,227.47,227.35,13.15463338]
[1734440404211,3.0439,227.47,227.36,2.1994]
[1734440404410,2.1985,227.46,227.35,13.15463338]
[1734440404616,3.0439,227.47,227.35,13.15463338]
[1734440404809,3.0439,227.47,227.39,2.1991]
[1734440405817,5.2423,227.47,227.39,2.1991]
[1734440406315,5.2423,227.47,227.4,2.199]
[1734440407919,12.43273338,227.5,227.4,2.199]
[1734440408222,1.5695,227.52,227.44,2.1986]
[1734440408416,1.5695,227.52,227.41,2.92]
[1734440408612,2.198,227.51,227.41,2.92]
[1734440408812,1.5695,227.52,227.47,2.1984]
[1734440409017,15.39663338,227.53,227.47,2.1984]
[1734440409414,13.19873338,227.53,227.46,2.1985]
[1734440409819,13.15463338,227.56,227.41,13.15463338]
[1734440410015,10.23463338,227.56,227.5,2.1981]
[1734440411522,10.23463338,227.56,227.51,2.198]
[1734440411722,10.23463338,227.56,227.44,10.23463338]
[1734440412022,10.23463338,227.56,227.45,4.55975022]
[1734440412222,10.23463338,227.56,227.46,4.55975022]
[1734440412423,10.23463338,227.56,227.44,10.23463338]
[1734440412624,10.23463338,227.56,227.5,2.198]
[1734440412824,2.1974,227.57,227.5,2.198]
[1734440413322,10.23463338,227.58,227.5,2.198]
[1734440413523,2.1975,227.56,227.5,2.198]
[1734440414125,2.1975,227.56,227.51,3.51]
[1734440414325,10.23463338,227.58,227.51,3.51]
[1734440414524,10.23463338,227.58,227.51,7.9]
[1734440414822,10.23463338,227.58,227.51,10.098]
[1734440415019,10.23463338,227.61,227.51,12.59]
[1734440415617,10.23463338,227.61,227.51,15.66]
[1734440415816,10.23463338,227.61,227.56,2.1975]
[1734440416822,10.23463338,227.64,227.59,2.1972]
[1734440417226,10.23463338,227.64,227.6,3.51]
[1734440417524,10.23463338,227.61,227.6,3.51]
[1734440417821,10.23463338,227.61,227.6,1.1576]
[1734440418229,12.43163338,227.61,227.6,1.1576]
[1734440418620,10.23463338,227.61,227.6,1.1576]
[1734440419020,10.23463338,227.64,227.6,1.1576]
[1734440420028,10.23463338,227.64,227.6,3.3547]
[1734440421220,10.23463338,227.64,227.6,1.1576]
[1734440422220,10.23463338,227.67,227.6,1.1576]
[1734440422628,2.1966,227.65,227.6,1.1576]
[1734440423323,10.23463338,227.64,227.6,1.1576]
[1734440423518,10.23463338,227.61,227.6,1.1576]
[1734440423724,13.01463338,227.64,227.6,1.1576]
[1734440423927,2.197,227.61,227.6,1.1576]
[1734440424327,2.197,227.62,227.6,1.1576]
[1734440424525,13.01463338,227.64,227.6,1.1576]
[1734440425833,2.197,227.61,227.6,1.1576]
[1734440426232,13.01463338,227.64,227.6,1.1576]
[1734440427427,2.1969,227.62,227.6,1.1576]
[1734440427627,13.01463338,227.64,227.6,1.1576]
[1734440428129,2.197,227.61,227.6,1.1576]
[1734440429339,2.1975,227.56,227.53,2.1977]
[1734440430027,10.23463338,227.61,227.53,2.1977]
[1734440430234,2.1974,227.57,227.51,14.35]
[1734440430430,10.23463338,227.61,227.51,14.35]
[1734440430631,2.1974,227.58,227.51,17.86]
[1734440430827,2.78,227.64,227.54,2.1977]
[1734440431034,10.23463338,227.62,227.54,2.1977]
[1734440431233,2.1974,227.58,227.54,3.51]
[1734440431435,10.23463338,227.62,227.54,3.51]
[1734440432234,10.23463338,227.62,227.54,9.23]
[1734440432938,10.23463338,227.56,227.54,9.23]
[1734440434234,2.1976,227.55,227.54,9.23]
[1734440434637,2.78,227.57,227.54,9.23]
[1734440434834,2.1974,227.57,227.54,9.23]
[1734440435035,2.78,227.6,227.54,9.23]
[1734440435233,4.9772,227.6,227.56,2.1975]
[1734440436037,2.78,227.6,227.54,12.3]
[1734440436240,2.1976,227.55,227.54,12.3]
[1734440436935,2.1976,227.55,227.54,9.23]
[1734440437937,10.23463338,227.59,227.54,9.23]
[1734440438136,4.4094,227.69,227.54,9.23]
[1734440438137,10.23463338,227.62,227.54,9.23]
[1734440438337,13.01463338,227.62,227.54,9.23]
[1734440438734,10.23463338,227.56,227.31,10.23463338]
[1734440439039,10.23463338,227.47,227.38,5.26345276]
[1734440439343,2.1987,227.44,227.39,4.55821688]
[1734440439541,10.23463338,227.47,227.4,4.55821688]
[1734440439736,10.23463338,227.47,227.41,4.55821688]
[1734440439937,10.23463338,227.47,227.42,7.9]
[1734440440634,2.1987,227.44,227.42,7.9]
[1734440441440,2.1986,227.46,227.42,7.9]
[1734440441735,10.23463338,227.49,227.42,7.9]
[1734440441940,2.78,227.55,227.42,7.9]
[1734440441941,2.198,227.52,227.42,7.9]
[1734440442141,4.3948,227.58,227.42,7.9]
[1734440442142,10.23463338,227.48,227.42,7.9]
[1734440442642,2.1988,227.43,227.42,10.97]
[1734440443444,2.1988,227.43,227.42,7.9]
[1734440447743,2.1989,227.42,227.41,15.77]
[1734440447948,12.43353338,227.42,227.41,15.77]
[1734440448942,10.23463338,227.42,227.4,3.51]
[1734440449247,1.4262,227.47,227.36,3.07]
[1734440449248,10.23463338,227.41,227.36,3.07]
[1734440449746,10.23463338,227.37,227.3,5.3382081]
[1734440449944,10.23463338,227.37,227.31,11.92318379]
[1734440450144,10.23463338,227.37,227.32,11.90583992]
[1734440450448,10.23463338,227.37,227.32,7.32]
[1734440450954,12.97463338,227.4,227.32,7.32]
[1734440451147,12.97463338,227.4,227.33,4.58452546]
[1734440451449,12.97463338,227.4,227.34,4.58452546]
[1734440451450,10.23463338,227.4,227.34,4.58452546]
[1734440451644,10.23463338,227.4,227.33,2.1997]
[1734440451849,10.23463338,227.4,227.32,7.32]
[1734440452041,10.23463338,227.4,227.33,4.5832734]
[1734440452242,2.1993,227.38,227.32,9.5198]
[1734440452547,10.23463338,227.37,227.32,7.32]
[1734440452748,2.1997,227.33,227.32,7.32]
[1734440454049,2.1996,227.34,227.32,7.32]
[1734440455249,2.1997,227.33,227.32,7.32]
[1734440456750,2.1998,227.32,227.31,12.09]
[1734440456947,12.43443338,227.32,227.31,12.09]
[1734440458950,12.43443338,227.32,227.3,2.53673]
[1734440458951,12.97463338,227.32,227.3,2.53673]
[1734440459247,2.1999,227.31,227.3,2.53673]
[1734440460145,12.97463338,227.32,227.29,3.51]
[1734440460346,10.23463338,227.3,227.16,5.24827966]
[1734440460555,10.23463338,227.22,227.16,5.24827966]
[1734440461244,10.23463338,227.22,227.17,3.52]
[1734440461452,12.43553338,227.22,227.17,16.7713]
[1734440461653,12.43553338,227.22,227.17,20.2913]
[1734440462150,10.23463338,227.22,227.17,18.09]
[1734440462746,2.201,227.2,227.17,18.09]
[1734440463055,2.74,227.21,227.17,18.09]
[1734440463856,10.23463338,227.19,227.17,18.09]
[1734440464446,2.2012,227.18,227.17,18.09]
[1734440464758,10.23463338,227.19,227.12,3.0953]
[1734440464953,2.2016,227.14,227.12,1.56]
[1734440465656,12.97463338,227.15,227.09,3.08]
[1734440465851,10.23463338,227.12,227.09,8.69]
[1734440466160,10.23463338,227.12,227.1,7.04]
[1734440466657,12.43643338,227.12,227.1,7.04]
[1734440466853,10.23463338,227.12,227.1,7.04]
[1734440468450,2.2019,227.11,227.1,7.04]
[1734440468651,10.23463338,227.12,227.06,3.08]
[1734440468852,10.23463338,227.07,226.75,13.64839502]
[1734440469054,10.23463338,227.01,226.88,10.23463338]
[1734440469253,10.23463338,227.01,226.84,3.038]
[1734440469254,10.23463338,226.98,226.89,13.35837948]
[1734440469556,12.97463338,226.98,226.9,6.77150749]
[1734440469750,12.97463338,226.98,226.91,4.56543]
[1734440469950,10.23463338,226.98,226.91,7.04]
[1734440470150,15.17783338,226.98,226.91,7.04]
[1734440470355,15.17783338,226.98,226.91,12.3238]
[1734440470850,10.23463338,227.01,226.91,15.46944767]
[1734440471050,10.23463338,227.07,226.92,10.23463338]
[1734440471354,10.23463338,227.1,226.95,10.23463338]
[1734440471546,10.23463338,227.1,226.96,7.60317662]
[1734440471751,10.23463338,227.1,226.97,4.55947662]
[1734440471957,10.23463338,227.1,227.02,2.2027]
[1734440471958,4.9421,227.09,227.02,2.2027]
[1734440472353,2.74,227.09,226.98,1.4903]
[1734440472554,2.2022,227.08,227.01,2.2028]
[1734440472755,0.4371,227.21,226.98,1.4903]
[1734440473051,10.23463338,227.11,226.98,11.72493338]
[1734440473256,10.23463338,227.11,227.04,2.2025]
[1734440473758,10.23463338,227.05,226.97,2.2031]
[1734440473960,12.97463338,227.05,226.92,4.4642]
[1734440474159,12.97463338,227.05,226.93,11.84236612]
[1734440474460,12.97463338,227.05,226.92,4.4642]
[1734440474461,12.97463338,227.05,226.94,4.5547562]
[1734440474757,12.97463338,227.05,226.92,4.4642]
[1734440474758,10.23463338,226.99,226.92,4.4642]
[1734440474956,10.23463338,226.96,226.92,4.4642]
[1734440475258,2.2034,226.95,226.92,2.9305]
[1734440475451,10.23463338,226.96,226.92,2.9305]
[1734440476056,16.41992292,226.96,226.92,2.9305]
[1734440476251,16.41992292,226.96,226.92,1.5057]
[1734440477757,2.2036,226.93,226.92,1.5057]
[1734440478358,16.41992292,226.96,226.92,1.5057]
[1734440478557,2.74,226.96,226.92,1.5057]
[1734440478858,2.2035,226.94,226.92,1.5057]
[1734440482964,2.2036,226.93,226.92,6.7557]
[1734440483257,2.66,226.97,226.92,6.7557]
[1734440483859,2.2035,226.95,226.92,6.7557]
[1734440484056,2.2035,226.95,226.92,10.2757]
[1734440484457,2.2031,226.98,226.92,12.4794]
[1734440484661,2.66,226.97,226.93,4.55188719]
[1734440484960,21.58271926,227.04,226.92,10.2757]
[1734440485263,16.41992292,227.0,226.93,4.55119191]
[1734440485458,16.41992292,227.0,226.92,10.2757]
[1734440485663,2.2036,226.93,226.92,10.2757]
[1734440485962,4.8636,226.93,226.92,10.2757]
[1734440486367,4.8636,226.93,226.92,8.77]